bitfinex-derivatives/quotes_BTCF0:USTF0_20250508
["timestamp","ask_amount","ask_price","bid_price","bid_amount"]
[1746738206005,0.00643,102510.0,102500.0,0.91269898]
[1746738206502,0.1139,102530.0,102500.0,1.29291174]
[1746738206702,0.20594611,102530.0,102520.0,0.7021711]
[1746738206910,0.20594611,102530.0,102520.0,0.7509383]
[1746738207106,0.20594611,102530.0,102520.0,1.1078383]
[1746738207502,0.30599496,102540.0,102530.0,0.1950551]
[1746738207701,0.51194107,102540.0,102530.0,0.3115551]
[1746738207899,0.51194107,102540.0,102530.0,0.4281551]
[1746738208101,0.63094107,102540.0,102530.0,0.4281551]
[1746738208606,0.44194611,102540.0,102530.0,0.4281551]
[1746738208796,0.64394107,102540.0,102530.0,0.4301551]
[1746738210511,0.83897707,102540.0,102530.0,0.4301551]
[1746738210805,0.1950551,102530.0,102520.0,0.20251889]
[1746738210999,1.19909617,102530.0,102520.0,0.20251889]
[1746738211205,1.00404107,102530.0,102520.0,0.20251889]
[1746738211400,0.43729496,102530.0,102520.0,0.44961889]
[1746738211710,0.64324107,102530.0,102520.0,0.56511889]
[1746738211910,0.45924611,102530.0,102520.0,0.56611889]
[1746738212201,0.64824107,102530.0,102520.0,0.56611889]
[1746738212407,0.64824107,102530.0,102520.0,0.58136632]
[1746738214208,0.84329617,102530.0,102520.0,0.38629222]
[1746738214505,0.84329617,102530.0,102490.0,0.2926865]
[1746738214506,0.1951121,102500.0,102490.0,0.2926865]
[1746738214707,0.38410706,102500.0,102490.0,0.5305865]
[1746738214914,0.42919496,102500.0,102490.0,0.5305865]
[1746738215912,0.31279496,102500.0,102490.0,0.5305865]
[1746738216612,0.31379496,102500.0,102490.0,0.54189364]
[1746738217406,0.001,102500.0,102490.0,0.54189364]
[1746738218304,0.18999496,102500.0,102490.0,0.55652364]
[1746738218501,0.31029496,102500.0,102490.0,0.55652364]
[1746738218706,0.42759496,102500.0,102490.0,0.55652364]
[1746738219514,0.1213,102500.0,102490.0,0.55652364]
[1746738220106,0.31029496,102500.0,102490.0,0.55652364]
[1746738220303,0.42349496,102500.0,102490.0,0.55652364]
[1746738221507,0.62944107,102500.0,102490.0,0.55652364]
[1746738221709,0.99024107,102500.0,102490.0,0.55652364]
[1746738222504,0.62944107,102500.0,102490.0,0.55652364]
[1746738222906,0.99024107,102500.0,102490.0,0.55652364]
[1746738223313,0.44044611,102500.0,102490.0,0.55652364]
[1746738223514,0.62944107,102500.0,102490.0,0.55652364]
[1746738224605,1.18535317,102500.0,102490.0,0.22105844]
[1746738224909,1.30415317,102500.0,102490.0,0.22105844]
[1746738226209,1.10904107,102500.0,102490.0,0.22105844]
[1746738226411,1.10904107,102500.0,102490.0,0.45525844]
[1746738226717,1.10904107,102500.0,102490.0,0.47051108]
[1746738226915,0.74824107,102500.0,102490.0,0.47051108]
[1746738229422,0.94335317,102500.0,102490.0,0.47051108]
[1746738229715,0.75435821,102500.0,102490.0,0.47051108]
[1746738230026,0.94335317,102500.0,102490.0,0.47051108]
[1746738232423,1.30415317,102500.0,102490.0,0.47051108]
[1746738232614,1.30415317,102500.0,102490.0,0.35721108]
[1746738233725,1.30415317,102500.0,102490.0,0.23631108]
[1746738234020,1.09820706,102500.0,102490.0,0.23631108]
[1746738234223,1.59415317,102500.0,102490.0,0.03388264]
[1746738234418,0.1951312,102490.0,102480.0,0.19617474]
[1746738234613,1.36846723,102490.0,102480.0,0.19617474]
[1746738234922,1.17947227,102490.0,102480.0,0.21019405]
[1746738235722,1.18047227,102490.0,102480.0,0.21019405]
[1746738236125,1.18147227,102490.0,102480.0,0.21119405]
[1746738236329,0.43654611,102490.0,102480.0,0.21119405]
[1746738236529,0.118,102490.0,102480.0,0.44589405]
[1746738236830,0.30699496,102490.0,102480.0,0.56289405]
[1746738237223,0.30599496,102490.0,102480.0,0.56589405]
[1746738237529,0.30599496,102490.0,102480.0,0.57334165]
[1746738238127,0.30599496,102490.0,102480.0,0.93414165]
[1746738238625,0.001,102490.0,102480.0,0.93414165]
[1746738239432,0.18999496,102490.0,102480.0,0.93414165]
[1746738239828,0.001,102490.0,102480.0,0.93414165]
[1746738240734,1e-07,102490.0,102480.0,1.14414165]
[1746738240929,1e-07,102490.0,102480.0,1.59873267]
[1746738241135,1e-07,102490.0,102480.0,1.59873148]
[1746738241831,1e-07,102490.0,102480.0,1.40973652]
[1746738242034,0.18899506,102490.0,102480.0,0.57334165]
[1746738242237,0.59007237,102490.0,102480.0,0.57334165]
[1746738242533,1.19457237,102490.0,102480.0,0.22164165]
[1746738242836,1.31817237,102490.0,102480.0,0.20017474]
[1746738243044,1.31817237,102490.0,102480.0,0.00502454]
[1746738243238,1.31817237,102490.0,102480.0,0.20017474]
[1746738243534,1.60817237,102490.0,102480.0,0.00502454]
[1746738243737,0.1951502,102480.0,102470.0,0.00292754]
[1746738243927,1.26438623,102480.0,102470.0,0.19809684]
[1746738244134,1.38178623,102480.0,102470.0,0.19809684]
[1746738244332,1.38178623,102480.0,102470.0,0.00292754]
[1746738244645,0.1951693,102470.0,102460.0,0.4159]
[1746738244839,1.19281037,102470.0,102460.0,0.00743588]
[1746738245142,0.1951883,102460.0,102450.0,0.29696603]
[1746738245344,1.19282937,102460.0,102450.0,0.29696603]
[1746738245545,1.19282937,102460.0,102450.0,0.3041552]
[1746738246243,0.99864107,102460.0,102450.0,0.3091552]
[1746738246432,1.19382937,102460.0,102450.0,0.32441218]
[1746738246835,1.19482937,102460.0,102450.0,0.34541763]
[1746738247143,0.99964107,102460.0,102450.0,0.33141218]
[1746738247851,0.81064611,102460.0,102450.0,0.33141218]
[1746738248040,0.99964107,102460.0,102450.0,0.33141218]
[1746738248852,1.38382433,102460.0,102450.0,0.03861488]
[1746738249251,1.19482937,102460.0,102450.0,0.23382228]
[1746738249556,1.19482937,102460.0,102450.0,0.2185653]
[1746738250355,1.19382937,102460.0,102450.0,0.2115653]
[1746738251047,1.19982937,102460.0,102450.0,0.2125653]
[1746738251250,1.19982937,102460.0,102450.0,0.2075653]
[1746738251956,1.00464107,102460.0,102450.0,0.4488653]
[1746738252145,1.20282937,102460.0,102450.0,0.4488653]
[1746738252653,1.20282937,102460.0,102450.0,0.3256653]
[1746738252952,1.01383441,102460.0,102450.0,0.3256653]
[1746738253153,1.20282937,102460.0,102450.0,0.4936653]
[1746738253454,1.20282937,102460.0,102450.0,0.6100653]
[1746738253648,1.01383441,102460.0,102450.0,0.6100653]
[1746738253845,1.20282937,102460.0,102450.0,0.6100653]
[1746738254956,1.20282937,102460.0,102450.0,0.60287613]
[1746738255650,0.6127,102460.0,102450.0,0.60287613]
[1746738255856,0.4953,102460.0,102450.0,0.60287613]
[1746738256153,0.70124611,102460.0,102450.0,0.40766873]
[1746738256352,0.70124611,102460.0,102450.0,0.36837613]
[1746738256353,1.01813441,102460.0,102450.0,0.36837613]
[1746738256559,1.20712937,102460.0,102450.0,0.36837613]
[1746738257359,1.08212937,102460.0,102450.0,0.36837613]
[1746738257551,1.08212937,102460.0,102450.0,0.48097613]
[1746738258449,1.56112433,102460.0,102450.0,0.17316873]
[1746738258659,1.37212937,102460.0,102450.0,0.17316873]
[1746738258959,1.37212937,102460.0,102450.0,0.36837613]
[1746738259148,0.89313441,102460.0,102450.0,0.36837613]
[1746738259459,0.89313441,102460.0,102450.0,0.49147613]
[1746738259649,1.08212937,102460.0,102450.0,0.49147597]
[1746738260754,1.01363441,102460.0,102450.0,0.60907597]
[1746738260949,1.20262937,102460.0,102450.0,0.60907597]
[1746738261153,1.00744107,102460.0,102450.0,0.60907597]
[1746738261352,1.20262937,102460.0,102450.0,0.60907597]
[1746738261955,0.81844611,102460.0,102450.0,0.60907597]
[1746738262158,1.00744107,102460.0,102450.0,0.60907597]
[1746738262348,1.20262937,102460.0,102450.0,0.17316857]
[1746738262549,1.58162433,102460.0,102450.0,0.17316857]
[1746738263659,0.1952264,102440.0,102430.0,0.1203]
[1746738263961,0.1952455,102430.0,102420.0,0.85307]
[1746738264163,0.1952455,102430.0,102420.0,0.61257]
[1746738264164,0.98764046,102430.0,102420.0,0.61257]
[1746738264357,1.19358657,102430.0,102420.0,0.38339043]
[1746738264556,1.00459161,102430.0,102420.0,0.57865493]
[1746738264760,1.19358657,102430.0,102420.0,0.57865493]
[1746738264947,0.99834107,102430.0,102420.0,0.59260182]
[1746738265153,0.99834107,102430.0,102420.0,0.5997981]
[1746738265553,0.80934611,102430.0,102420.0,0.5997981]
[1746738265759,1.19458657,102430.0,102420.0,0.6007981]
[1746738265959,1.19458657,102430.0,102420.0,0.58685121]
[1746738266963,1.19658657,102430.0,102420.0,0.57865493]
[1746738267958,1.19658657,102430.0,102420.0,0.59276847]
[1746738268159,0.81234611,102430.0,102420.0,0.59276847]
[1746738268468,1.00134107,102430.0,102420.0,0.59276847]
[1746738269360,0.99064046,102430.0,102420.0,0.38339043]
[1746738269562,1.19902657,102430.0,102420.0,0.57865493]
[1746738269965,1.01003161,102430.0,102420.0,0.57865493]
[1746738270264,1.19902657,102430.0,102420.0,0.57865493]
[1746738270463,1.19902657,102430.0,102420.0,0.59242962]
[1746738273263,1.62802153,102430.0,102420.0,0.01489043]
[1746738273465,0.1952645,102420.0,102410.0,0.00830011]
[1746738273667,1.38230053,102420.0,102410.0,0.20358371]
[1746738273864,1.38230053,102420.0,102410.0,0.31908371]
[1746738274369,1.19330557,102420.0,102410.0,0.31908371]
[1746738274570,1.19330557,102420.0,102410.0,0.43858371]
[1746738274775,1.00431061,102420.0,102410.0,0.43858371]
[1746738274960,1.19330557,102420.0,102410.0,0.43858371]
[1746738275163,1.00531061,102420.0,102410.0,0.43858371]
[1746738275358,1.19430557,102420.0,102410.0,0.43858371]
[1746738275766,1.00531061,102420.0,102410.0,0.43958371]
[1746738276068,1.19430557,102420.0,102410.0,0.43958371]
[1746738276267,0.001,102420.0,102410.0,0.98937867]
[1746738276465,0.001,102420.0,102410.0,0.80038371]
[1746738276867,1e-07,102420.0,102410.0,1.29701867]
[1746738277171,1e-07,102420.0,102410.0,2.3541819]
[1746738277475,0.00244,102430.0,102420.0,0.19587699]
[1746738277673,0.00244,102430.0,102420.0,1.50457699]
[1746738277967,0.38668046,102430.0,102420.0,1.50457699]
[1746738278167,0.74748046,102430.0,102420.0,0.55377699]
[1746738278365,0.97988046,102430.0,102420.0,0.55377699]
[1746738278571,0.07015345,102460.0,102420.0,1.62019891]
[1746738278762,0.39149956,102460.0,102450.0,0.1952074]
[1746738278966,0.39149956,102460.0,102450.0,0.5560074]
[1746738279264,0.32134611,102460.0,102450.0,0.9139074]
[1746738279869,0.49958326,102460.0,102450.0,0.9139074]
[1746738280073,0.49958326,102460.0,102450.0,0.001]
[1746738280074,1.18932937,102460.0,102450.0,0.001]
[1746738280276,1.50802433,102460.0,102450.0,0.001]
[1746738280466,1.79802433,102460.0,102450.0,0.001]
[1746738280973,0.1952264,102440.0,102430.0,0.1233]
[1746738281269,0.1952455,102430.0,102420.0,0.41429199]
[1746738281476,1.18148657,102430.0,102420.0,0.41429199]
[1746738281663,1.18148657,102430.0,102420.0,0.1280742]
[1746738281866,1.18148657,102430.0,102420.0,0.2025387]
[1746738282774,1.18148657,102430.0,102420.0,0.3235387]
[1746738282978,1.18248657,102430.0,102420.0,0.3235387]
[1746738283470,1.18448657,102430.0,102420.0,0.3235387]
[1746738283671,0.80024611,102430.0,102420.0,0.3235387]
[1746738283874,0.1952645,102420.0,102410.0,0.19630704]
[1746738284065,1.18420557,102420.0,102410.0,0.19630704]
[1746738284871,1.18420557,102420.0,102410.0,0.31730704]
[1746738285072,0.43914611,102420.0,102410.0,0.31730704]
[1746738285371,0.20594611,102420.0,102410.0,0.43090704]
[1746738285572,0.20694611,102420.0,102410.0,0.55200704]
[1746738285769,0.20794611,102420.0,102410.0,0.55200704]
[1746738285969,0.20794611,102420.0,102410.0,0.5669013]
[1746738286964,0.82440557,102420.0,102410.0,0.3342013]
[1746738287472,1.18520557,102420.0,102410.0,0.0179195]
[1746738287777,1.29920557,102420.0,102410.0,0.2132031]
[1746738288374,1.11021061,102420.0,102410.0,0.2132031]
[1746738288574,1.29920557,102420.0,102410.0,0.2132031]
[1746738288873,0.44014611,102420.0,102410.0,0.8076031]
[1746738289079,0.63541061,102420.0,102410.0,0.9243031]
[1746738289467,0.82440557,102420.0,102410.0,0.9243031]
[1746738289980,0.63541061,102420.0,102410.0,0.5635031]
[1746738290179,0.82440557,102420.0,102410.0,0.7315031]
[1746738290366,0.82440557,102420.0,102410.0,0.5019031]
[1746738290570,0.63541061,102420.0,102410.0,0.5019031]
[1746738290878,0.63541061,102420.0,102410.0,0.6159031]
[1746738291078,0.82440557,102420.0,102410.0,0.6159031]
[1746738291376,0.63541061,102420.0,102410.0,0.6159031]
[1746738291572,0.99621061,102420.0,102410.0,0.6159031]
[1746738291778,1.18520557,102420.0,102410.0,0.6159031]
[1746738292479,0.80094611,102420.0,102410.0,0.6159031]
[1746738292680,0.80094611,102420.0,102410.0,0.7378031]
[1746738292978,0.99621061,102420.0,102410.0,0.7378031]
[1746738293277,0.44014611,102420.0,102410.0,1.0986031]
[1746738293477,0.63541061,102420.0,102410.0,1.0986031]
[1746738294076,0.63541061,102420.0,102410.0,0.7378031]
[1746738294280,0.63541061,102420.0,102410.0,1.0986031]
[1746738295779,0.002,102420.0,102410.0,1.28759806]
[1746738295965,0.002,102420.0,102410.0,0.5467195]
[1746738296167,0.63101061,102420.0,102410.0,0.3812031]
[1746738296372,0.63101061,102420.0,102410.0,0.9797031]
[1746738297375,1.65980053,102420.0,102410.0,0.1859195]
[1746738297579,1.18080557,102420.0,102410.0,0.1859195]
[1746738297880,0.1952836,102410.0,102400.0,0.10292954]
[1746738298069,1.18842467,102410.0,102400.0,0.10292954]
[1746738298681,0.99942971,102410.0,102400.0,0.10292954]
[1746738298868,1.18842467,102410.0,102400.0,0.10292954]
[1746738299366,1.18942467,102410.0,102400.0,0.10692954]
[1746738299567,1.19042467,102410.0,102400.0,0.10692954]
[1746738299971,1.19042467,102410.0,102400.0,0.30223224]
[1746738300175,1.38279307,102410.0,102380.0,0.00102559]
[1746738300373,0.1953408,102380.0,102370.0,0.12113055]
[1746738300680,0.38433576,102380.0,102370.0,0.24363055]
[1746738300985,0.195379,102360.0,102350.0,0.14546062]
[1746738301277,0.1953981,102350.0,102340.0,0.19451986]
[1746738301481,0.98089306,102350.0,102340.0,0.38993706]
[1746738301779,0.98089306,102350.0,102340.0,0.4152709]
[1746738301980,0.78549496,102350.0,102340.0,0.4152709]
[1746738302186,0.74519306,102350.0,102340.0,0.4152709]
[1746738302378,0.3608,102350.0,102340.0,0.41828412]
[1746738302578,0.7900922,102360.0,102350.0,0.1953981]
[1746738302778,0.5561922,102360.0,102350.0,0.38439306]
[1746738303088,0.3608,102370.0,102360.0,0.195379]
[1746738303282,0.5561599,102370.0,102360.0,0.38437396]
[1746738303475,0.6049614,102390.0,102360.0,1.08647792]
[1746738303681,0.6052472,102400.0,102390.0,0.1953218]
[1746738303875,0.8391472,102400.0,102390.0,0.1953218]
[1746738304088,1.04509331,102400.0,102390.0,0.1132]
[1746738304580,1.04509331,102400.0,102390.0,0.3085218]
[1746738305187,1.04509331,102400.0,102390.0,0.2288]
[1746738305384,0.1953599,102370.0,102360.0,0.653857]
[1746738305583,0.1953599,102370.0,102360.0,0.96604776]
[1746738305879,0.1953599,102370.0,102360.0,0.867145]
[1746738306085,0.1953599,102370.0,102360.0,1.16883996]
[1746738306478,0.1953599,102370.0,102360.0,1.07115196]
[1746738306680,0.4332599,102370.0,102360.0,1.18335196]
[1746738306882,0.4352599,102370.0,102360.0,0.82355196]
[1746738307681,0.4352599,102370.0,102360.0,0.634557]
[1746738309190,0.7960599,102370.0,102360.0,0.634557]
[1746738309382,1.00200601,102370.0,102360.0,0.2298]
[1746738309582,1.00200601,102370.0,102360.0,0.309579]
[1746738309782,1.00200601,102370.0,102360.0,0.001]
[1746738309977,1.25060956,102370.0,102360.0,0.01627134]
[1746738310188,1.59210956,102370.0,102360.0,4e-08]
[1746738310686,0.1953981,102350.0,102340.0,0.00102594]
[1746738310888,1.66154772,102350.0,102340.0,0.00102594]
[1746738311078,1.41294417,102350.0,102340.0,4e-08]
[1746738311282,1.89914772,102350.0,102340.0,4e-08]
[1746738311581,1.9246434,102350.0,102340.0,4e-08]
[1746738312185,1.99685572,102350.0,102340.0,4e-08]
[1746738312386,1.74825217,102350.0,102340.0,4e-08]
[1746738312587,1.99685572,102350.0,102340.0,4e-08]
[1746738312787,2.01685572,102350.0,102340.0,4e-08]
[1746738312985,2.0416584,102350.0,102340.0,4e-08]
[1746738313285,0.1954554,102320.0,102310.0,0.00102629]
[1746738313484,1.37136943,102320.0,102310.0,0.00102629]
[1746738313688,1.59966943,102320.0,102310.0,0.00102629]
[1746738314287,1.59966943,102320.0,102300.0,0.34728765]
[1746738314288,0.1954745,102310.0,102300.0,0.10293255]
[1746738314591,0.99332057,102310.0,102300.0,0.10293255]
[1746738314883,1.24192412,102310.0,102300.0,0.10293255]
[1746738315087,0.99332057,102310.0,102300.0,0.10293255]
[1746738315291,0.99332057,102310.0,102300.0,0.29842615]
[1746738315292,0.5919,102310.0,102300.0,0.29842615]
[1746738315594,0.5919,102310.0,102300.0,0.52832615]
[1746738315783,0.2371,102310.0,102300.0,0.7769297]
[1746738316085,0.3728,102310.0,102300.0,0.7769297]
[1746738316388,0.012,102310.0,102300.0,0.87607415]
[1746738316584,0.012,102310.0,102300.0,0.8746777]
[1746738316982,0.012,102310.0,102300.0,1.2046777]
[1746738317189,0.02443,102320.0,102310.0,0.1954745]
[1746738317392,0.02443,102320.0,102310.0,1.04127805]
[1746738317691,0.02443,102320.0,102310.0,1.13901405]
[1746738317886,0.02443,102320.0,102310.0,0.8904105]
[1746738318285,0.02443,102320.0,102310.0,1.13901405]
[1746738318685,0.02943,102320.0,102310.0,1.13901405]
[1746738319085,0.2288854,102320.0,102310.0,1.0004105]
[1746738319288,0.009,102320.0,102310.0,1.24901405]
[1746738319690,0.009,102320.0,102310.0,1.45901405]
[1746738319891,0.00482,102330.0,102320.0,0.1954554]
[1746738320087,0.00482,102330.0,102320.0,1.03455895]
[1746738320292,0.2002563,102330.0,102320.0,0.9954834]
[1746738320593,0.5610563,102330.0,102320.0,0.6346834]
[1746738320788,1.00000237,102330.0,102320.0,0.1144]
[1746738320987,0.1954554,102320.0,102310.0,0.1153]
[1746738321192,0.79974607,102320.0,102310.0,0.67377805]
[1746738321394,0.7892554,102320.0,102310.0,0.4251745]
[1746738321597,0.7892554,102320.0,102310.0,0.67377805]
[1746738322095,0.5938,102320.0,102310.0,0.67577805]
[1746738322301,0.7892554,102320.0,102310.0,0.67577805]
[1746738322490,0.5938,102320.0,102310.0,0.4271745]
[1746738322797,0.234,102320.0,102310.0,0.67577805]
[1746738322997,0.5948,102320.0,102310.0,0.4271745]
[1746738323190,0.234,102320.0,102310.0,0.67577805]
[1746738323497,0.001,102320.0,102310.0,1.21431405]
[1746738323693,0.001,102320.0,102310.0,0.9657105]
[1746738323893,0.76320147,102320.0,102310.0,0.4271745]
[1746738324096,0.63620147,102320.0,102310.0,0.4271745]
[1746738324394,0.99700147,102320.0,102310.0,0.002]
[1746738324599,1.24560502,102320.0,102310.0,0.002]
[1746738324897,1.53700147,102320.0,102310.0,1e-07]
[1746738325392,1.78560502,102320.0,102310.0,1e-07]
[1746738325785,1.53700147,102320.0,102310.0,1e-07]
[1746738325989,1.49560502,102320.0,102310.0,1e-07]
[1746738326204,0.99700147,102320.0,102310.0,1e-07]
[1746738326509,1.24560502,102320.0,102310.0,1e-07]
[1746738326698,1.53560502,102320.0,102310.0,1e-07]
[1746738328291,1.79149276,102320.0,102310.0,1e-07]
[1746738328489,1.88922876,102320.0,102310.0,1e-07]
[1746738328891,1.64062521,102320.0,102310.0,1e-07]
[1746738329203,1.38473747,102320.0,102310.0,1e-07]
[1746738329499,1.28700147,102320.0,102310.0,1e-07]
[1746738329695,1.53560502,102320.0,102310.0,1e-07]
[1746738331098,1.89640502,102320.0,102310.0,1e-07]
[1746738331499,1.60640502,102320.0,102310.0,1e-07]
[1746738331695,1.35780147,102320.0,102310.0,1e-07]
[1746738332203,1.60640502,102320.0,102310.0,1e-07]
[1746738333701,1.35780147,102320.0,102310.0,0.1954746]
[1746738333900,1.35780147,102320.0,102310.0,0.1146001]
[1746738334100,1.60640502,102320.0,102310.0,0.1146001]
[1746738334300,1.60640502,102320.0,102310.0,1e-07]
[1746738334506,1.35780147,102320.0,102310.0,1e-07]
[1746738334899,1.60640502,102320.0,102310.0,1e-07]
[1746738336607,1.80640502,102320.0,102310.0,1e-07]
[1746738337000,1.60640502,102320.0,102310.0,1e-07]
[1746738337201,1.83640502,102320.0,102310.0,0.1680001]
[1746738338104,1.83640502,102320.0,102310.0,1e-07]
[1746738339405,0.40142057,102310.0,102300.0,0.07389025]
[1746738339599,1.28742057,102310.0,102300.0,5e-08]
[1746738339800,1.36092412,102310.0,102300.0,5e-08]
[1746738340302,1.36092412,102310.0,102300.0,0.16800005]
[1746738340908,1.00012412,102310.0,102300.0,0.16900005]
[1746738341103,1.72172412,102310.0,102300.0,0.16900005]
[1746738341311,0.1955127,102290.0,102280.0,0.2327]
[1746738341524,1.16571625,102290.0,102280.0,0.2327]
[1746738341707,1.1488127,102290.0,102280.0,0.1114]
[1746738342010,1.51561625,102290.0,102280.0,0.1114]
[1746738342606,1.72156232,102290.0,102280.0,0.001]
[1746738343001,1.72156232,102290.0,102280.0,0.002]
[1746738343312,1.96156232,102290.0,102280.0,1e-07]
[1746738343503,1.47295877,102290.0,102280.0,1e-07]
[1746738343703,1.72156232,102290.0,102280.0,1e-07]
[1746738343899,1.60336232,102290.0,102280.0,1e-07]
[1746738344212,1.35475877,102290.0,102280.0,0.1680001]
[1746738344514,1.72456232,102290.0,102280.0,0.1680001]
[1746738345101,1.47595877,102290.0,102280.0,0.1680001]
[1746738345306,1.72456232,102290.0,102280.0,0.1680001]
[1746738345608,1.95456232,102290.0,102280.0,0.1680001]
[1746738346111,0.1955318,102280.0,102270.0,0.00102664]
[1746738346305,0.92513535,102280.0,102270.0,0.00102664]
[1746738346499,1.24568142,102280.0,102270.0,0.00102664]
[1746738347017,1.69428497,102280.0,102270.0,0.00102664]
[1746738347205,0.1955509,102270.0,102260.0,0.00293355]
[1746738347406,1.36260052,102270.0,102260.0,0.00293355]
[1746738348606,1.11499697,102270.0,102260.0,0.00793355]
[1746738348806,1.36460052,102270.0,102260.0,0.01293355]
[1746738349816,1.36704052,102270.0,102260.0,0.01293355]
[1746738350220,1.11843697,102270.0,102260.0,0.18093355]
[1746738350814,1.42109445,102270.0,102260.0,0.18093355]
[1746738351016,1.37843697,102270.0,102260.0,0.09231265]
[1746738351218,0.1955892,102250.0,102240.0,0.236127]
[1746738351516,0.5563892,102250.0,102240.0,0.236127]
[1746738351712,0.7912892,102250.0,102240.0,0.236127]
[1746738351915,1.40069275,102250.0,102240.0,0.236127]
[1746738352216,1.35803527,102250.0,102240.0,0.236127]
[1746738352416,1.35903527,102250.0,102240.0,0.241127]
[1746738352611,1.60763882,102250.0,102240.0,0.241127]
[1746738353119,1.35903527,102250.0,102240.0,0.118827]
[1746738353304,1.40169275,102250.0,102240.0,0.118827]
[1746738353511,1.60763882,102250.0,102240.0,0.118827]
[1746738353716,1.60763882,102250.0,102240.0,0.122827]
[1746738353717,1.99083882,102250.0,102240.0,0.122827]
[1746738353904,1.99083882,102250.0,102240.0,0.008027]
[1746738354215,1.48223527,102250.0,102240.0,0.176027]
[1746738354420,1.73083882,102250.0,102240.0,0.176027]
[1746738354715,1.36003527,102250.0,102240.0,0.3716353]
[1746738354917,1.36003527,102250.0,102240.0,0.400127]
[1746738355116,1.60863882,102250.0,102240.0,0.5957353]
[1746738355319,1.60863882,102250.0,102240.0,0.400127]
[1746738355516,1.36003527,102250.0,102240.0,0.5957353]
[1746738356121,1.60863882,102250.0,102240.0,0.400127]
[1746738357114,1.36003527,102250.0,102240.0,0.400127]
[1746738357510,1.60863882,102250.0,102240.0,0.400127]
[1746738357710,1.36003527,102250.0,102240.0,0.5957353]
[1746738357912,0.5583892,102250.0,102240.0,0.5957353]
[1746738358114,0.3628,102250.0,102240.0,0.5957353]
[1746738359619,0.5583892,102250.0,102240.0,0.5957353]
[1746738359824,0.3628,102250.0,102240.0,0.5957353]
[1746738360017,0.002,102250.0,102240.0,1.30294285]
[1746738360320,0.1975892,102250.0,102240.0,1.30294285]
[1746738360521,0.002,102250.0,102240.0,1.30294285]
[1746738360720,0.1975892,102250.0,102240.0,1.30294285]
[1746738361108,0.63557137,102260.0,102250.0,0.1955892]
[1746738361109,0.09772517,102260.0,102250.0,0.1955892]
[1746738361422,0.08682833,102280.0,102270.0,0.1955509]
[1746738361613,0.28236013,102280.0,102270.0,0.9722509]
[1746738361813,0.28236013,102280.0,102270.0,1.55223045]
[1746738362111,0.14913384,102290.0,102280.0,0.1955318]
[1746738362316,0.14913384,102290.0,102280.0,0.4381318]
[1746738362621,0.34464654,102290.0,102280.0,0.5358998]
[1746738362812,0.14913384,102290.0,102280.0,0.5658998]
[1746738363011,0.34464654,102290.0,102280.0,0.5658998]
[1746738363212,0.34864654,102290.0,102280.0,0.7338998]
[1746738363411,0.34864654,102290.0,102280.0,0.98250335]
[1746738363613,0.0043,102290.0,102280.0,0.7338998]
[1746738363812,0.0043,102290.0,102280.0,1.75920335]
[1746738364019,0.0083,102290.0,102280.0,1.93020335]
[1746738364209,0.0083,102290.0,102280.0,1.5015998]
[1746738364417,0.2038127,102290.0,102280.0,1.5015998]
[1746738364716,0.2038127,102290.0,102280.0,1.4815998]
[1746738364916,0.2038127,102290.0,102280.0,1.1207998]
[1746738365120,0.0083,102290.0,102280.0,1.73020335]
[1746738365319,0.00254,102300.0,102280.0,1.73020335]
[1746738365320,0.00254,102300.0,102290.0,0.1955127]
[1746738365519,0.14883384,102320.0,102310.0,0.1954745]
[1746738365824,0.14883384,102320.0,102310.0,0.44407805]
[1746738366118,0.14883384,102320.0,102310.0,1.14957805]
[1746738366416,0.14883384,102320.0,102310.0,1.89321405]
[1746738366724,0.0003,102330.0,102320.0,0.1954554]
[1746738367023,0.5565363,102330.0,102320.0,0.2326]
[1746738367223,0.1957363,102330.0,102320.0,0.5960554]
[1746738367921,0.6697363,102330.0,102320.0,0.5960554]
[1746738368218,0.1957363,102330.0,102320.0,0.5960554]
[1746738368419,0.5565363,102330.0,102320.0,0.5960554]
[1746738368619,0.5565363,102330.0,102320.0,0.4006]
[1746738368816,0.3163363,102330.0,102320.0,0.5960554]
[1746738369014,0.4343363,102330.0,102320.0,0.5960554]
[1746738369216,0.7951363,102330.0,102320.0,0.5960554]
[1746738369519,1.00208237,102330.0,102320.0,0.5960554]
[1746738370011,1.00208237,102330.0,102320.0,0.4006]
[1746738370213,1.37877109,102330.0,102320.0,0.168]
[1746738370412,1.49527109,102330.0,102320.0,0.168]
[1746738372023,1.49527109,102330.0,102320.0,0.3634554]
[1746738372024,1.24666754,102330.0,102320.0,0.3634554]
[1746738372415,1.24666754,102330.0,102320.0,0.4780554]
[1746738372726,0.88586754,102330.0,102320.0,0.4780554]
[1746738372919,0.88586754,102330.0,102320.0,0.5925554]
[1746738373225,1.24666754,102330.0,102320.0,0.5925554]
[1746738374421,1.49527109,102330.0,102320.0,0.2826]
[1746738374824,1.24666754,102330.0,102320.0,0.4780554]
[1746738375121,1.24666754,102330.0,102320.0,0.2826]
[1746738375725,1.49527109,102330.0,102320.0,0.168]
[1746738376826,1.24666754,102330.0,102320.0,0.168]
[1746738377026,1.49527109,102330.0,102320.0,0.168]
[1746738378322,1.24666754,102330.0,102320.0,0.168]
[1746738378524,1.49527109,102330.0,102320.0,0.168]
[1746738378723,1.24666754,102330.0,102320.0,0.3634554]
[1746738378925,1.24666754,102330.0,102320.0,0.168]
[1746738379627,1.49527109,102330.0,102320.0,0.168]
[1746738379822,1.24666754,102330.0,102320.0,0.168]
[1746738380021,1.49527109,102330.0,102320.0,0.168]
[1746738381027,1.24666754,102330.0,102320.0,0.168]
[1746738381228,1.49527109,102330.0,102320.0,0.168]
[1746738382129,1.24666754,102330.0,102320.0,0.168]
[1746738382324,1.49527109,102330.0,102320.0,0.168]
[1746738383225,0.1955318,102280.0,102270.0,0.65513194]
[1746738383433,0.6052078,102290.0,102280.0,0.1955318]
[1746738383824,0.7232078,102290.0,102280.0,0.3083318]
[1746738384528,0.8414078,102290.0,102280.0,0.4216318]
[1746738384731,0.2362,102290.0,102280.0,1.03103535]
[1746738384926,0.3137127,102290.0,102280.0,1.15123535]
[1746738385126,0.3147127,102290.0,102280.0,0.9056318]
[1746738385527,1.12754394,102290.0,102280.0,0.4246318]
[1746738385732,0.7935127,102290.0,102280.0,0.1163]
[1746738385934,1.24414394,102290.0,102280.0,0.003]
[1746738386141,1.24514394,102290.0,102280.0,0.2025318]
[1746738386636,1.24514394,102290.0,102280.0,0.007]
[1746738386831,1.49374749,102290.0,102280.0,0.007]
[1746738387230,1.49374749,102290.0,102280.0,0.175]
[1746738388037,1.49374749,102290.0,102280.0,0.18989819]
[1746738389535,1.73374749,102290.0,102280.0,0.18989819]
[1746738390139,1.49374749,102290.0,102280.0,0.18989819]
[1746738390326,1.72374749,102290.0,102280.0,0.18989819]
[1746738390834,0.12808517,102280.0,102260.0,0.00293355]